fUSD/lending_fUSD_20260611
["ID","MTS","AMOUNT","RATE_DAILY","PERIOD"]
[424808028,1781176246000,-3903.21065,0.00014284,2]
[424808014,1781176246000,-150.0,0.00014219,2]
[424807988,1781176246000,-150.0,0.00014101,2]
[424808015,1781176246000,-299.60307495,0.00014229,2]
[424807991,1781176246000,-150.0,0.00014109,2]
[424807999,1781176246000,-150.0,0.00014146,2]
[424807992,1781176246000,-150.0,0.00014112,2]
[424807990,1781176246000,-299.60307495,0.00014108,2]
[424807993,1781176246000,-299.60307495,0.00014123,2]
[424807996,1781176246000,-150.0,0.00014135,2]
[424807997,1781176246000,-299.60307495,0.00014139,2]
[424807998,1781176246000,-150.0,0.00014143,2]
[424807995,1781176246000,-150.0,0.00014134,2]
[424808000,1781176246000,-299.60307495,0.00014154,2]
[424808002,1781176246000,-150.0,0.00014169,2]
[424807994,1781176246000,-150.0,0.0001413,2]
[424808006,1781176246000,-150.0,0.00014182,2]
[424808012,1781176246000,-150.0,0.00014211,2]
[424808004,1781176246000,-299.60307495,0.00014169,2]
[424808023,1781176246000,-150.0,0.00014263,2]
[424808010,1781176246000,-150.0,0.00014203,2]
[424808011,1781176246000,-150.0,0.00014206,2]
[424808007,1781176246000,-299.60307495,0.00014184,2]
[424808013,1781176246000,-299.60307495,0.00014214,2]
[424808008,1781176246000,-150.0,0.00014185,2]
[424808005,1781176246000,-150.0,0.00014175,2]
[424808001,1781176246000,-150.0,0.00014159,2]
[424808003,1781176246000,-150.0,0.00014169,2]
[424808009,1781176246000,-299.60307495,0.00014199,2]
[424808091,1781176247000,-150.0,0.00014558,2]
[424808085,1781176247000,-299.60307495,0.00014532,2]
[424808089,1781176247000,-150.0,0.00014548,2]
[424808078,1781176247000,-150.0,0.00014495,2]
[424808084,1781176247000,-150.0,0.00014521,2]
[424808080,1781176247000,-150.0,0.00014509,2]
[424808082,1781176247000,-299.60307495,0.00014517,2]
[424808079,1781176247000,-299.60307495,0.00014502,2]
[424808075,1781176247000,-150.0,0.00014487,2]
[424808072,1781176247000,-299.60307495,0.00014472,2]
[424808088,1781176247000,-299.60307495,0.00014547,2]
[424808081,1781176247000,-150.0,0.00014511,2]
[424808087,1781176247000,-150.0,0.00014547,2]
[424808103,1781176247000,-150.0,0.00014612,2]
[424808093,1781176247000,-1555.5,0.00014564,2]
[424808092,1781176247000,-299.60307495,0.00014562,2]
[424808095,1781176247000,-150.0,0.00014578,2]
[424808090,1781176247000,-150.0,0.00014549,2]
[424808094,1781176247000,-150.0,0.00014573,2]
[424808097,1781176247000,-299.60307495,0.00014578,2]
[424808099,1781176247000,-150.0,0.00014584,2]
[424808104,1781176247000,-150.0,0.00014612,2]
[424808102,1781176247000,-299.60307495,0.00014608,2]
[424808100,1781176247000,-299.60307495,0.00014593,2]
[424808096,1781176247000,-150.0,0.00014578,2]
[424808076,1781176247000,-299.60307495,0.00014487,2]
[424808086,1781176247000,-150.0,0.00014544,2]
[424808077,1781176247000,-150.0,0.00014487,2]
[424808048,1781176247000,-299.60307495,0.00014366,2]
[424808083,1781176247000,-150.0,0.00014518,2]
[424808046,1781176247000,-150.0,0.00014362,2]
[424808107,1781176247000,-150.0,0.00014625,2]
[424808058,1781176247000,-150.0,0.00014401,2]
[424808050,1781176247000,-150.0,0.00014373,2]
[424808052,1781176247000,-150.0,0.00014387,2]
[424808047,1781176247000,-150.0,0.00014365,2]
[424808054,1781176247000,-150.0,0.00014392,2]
[424808051,1781176247000,-299.60307495,0.00014381,2]
[424808053,1781176247000,-10482.63494594,0.0001439,2]
[424808049,1781176247000,-150.0,0.00014366,2]
[424808055,1781176247000,-150.0,0.00014393,2]
[424808057,1781176247000,-1240.73551738,0.000144,2]
[424808056,1781176247000,-299.60307495,0.00014396,2]
[424808059,1781176247000,-150.0,0.00014407,2]
[424808062,1781176247000,-150.0,0.00014424,2]
[424808070,1781176247000,-299.60307495,0.00014456,2]
[424808067,1781176247000,-299.60307495,0.00014441,2]
[424808068,1781176247000,-150.0,0.00014444,2]
[424808065,1781176247000,-150.0,0.00014441,2]
[424808064,1781176247000,-150.0,0.00014438,2]
[424808069,1781176247000,-150.0,0.00014456,2]
[424808060,1781176247000,-299.60307495,0.00014411,2]
[424808061,1781176247000,-150.0,0.00014418,2]
[424808071,1781176247000,-150.0,0.0001447,2]
[424808066,1781176247000,-150.0,0.00014441,2]
[424808063,1781176247000,-299.60307495,0.00014426,2]
[424808073,1781176247000,-150.0,0.00014475,2]
[424808074,1781176247000,-150.0,0.00014475,2]
[424808101,1781176247000,-150.0,0.00014599,2]
[424808114,1781176247000,-299.60307495,0.00014668,2]
[424808106,1781176247000,-299.60307495,0.00014623,2]
[424808135,1781176247000,-299.60307495,0.00014759,2]
[424808134,1781176247000,-150.0,0.00014754,2]
[424808136,1781176247000,-150.0,0.00014767,2]
[424808138,1781176247000,-150.0,0.00014772,2]
[424808154,1781176247000,-150.0,0.00014831,2]
[424808144,1781176247000,-350.0,0.000148,2]
[424808155,1781176247000,-299.60307495,0.00014835,2]
[424808146,1781176247000,-300.0,0.000148,5]
[424808145,1781176247000,-2368.92644874,0.000148,2]
[424808149,1781176247000,-150.0,0.00014805,2]
[424808143,1781176247000,-150.0,0.00014799,2]
[424808148,1781176247000,-299.60307495,0.00014805,2]
[424808133,1781176247000,-150.0,0.00014748,2]
[424808147,1781176247000,-150.0,0.00014804,2]
[424808150,1781176247000,-150.0,0.00014816,2]
[424808098,1781176247000,-150.0,0.0001458,2]
[424808151,1781176247000,-168.90688265,0.00014819,2]
[424808157,1781176247000,-150.0,0.0001485,2]
[424808160,1781176247000,-3620.0,0.00014856,2]
[424808156,1781176247000,-150.0,0.0001484,2]
[424808163,1781176247000,-299.60307495,0.00014865,2]
[424808158,1781176247000,-150.0,0.0001485,2]
[424808159,1781176247000,-299.60307495,0.0001485,2]
[424808161,1781176247000,-150.0,0.00014857,2]
[424808162,1781176247000,-150.0,0.00014861,2]
[424808164,1781176247000,-500.0,0.00014871,2]
[424808153,1781176247000,-150.0,0.0001483,2]
[424808137,1781176247000,-150.0,0.00014768,2]
[424808152,1781176247000,-299.60307495,0.0001482,2]
[424808141,1781176247000,-150.0,0.00014782,2]
[424808140,1781176247000,-150.0,0.0001478,2]
[424808105,1781176247000,-150.0,0.00014621,2]
[424808110,1781176247000,-150.0,0.00014646,2]
[424808113,1781176247000,-150.0,0.00014657,2]
[424808108,1781176247000,-299.60307495,0.00014638,2]
[424808109,1781176247000,-150.0,0.00014643,2]
[424808117,1781176247000,-150.0,0.0001468,2]
[424808112,1781176247000,-299.60307495,0.00014653,2]
[424808119,1781176247000,-150.0,0.00014687,2]
[424808118,1781176247000,-299.60307495,0.00014684,2]
[424808115,1781176247000,-150.0,0.00014674,2]
[424808116,1781176247000,-150.0,0.00014676,2]
[424808121,1781176247000,-299.60307495,0.00014699,2]
[424808111,1781176247000,-150.0,0.0001465,2]
[424808124,1781176247000,-150.0,0.00014705,2]
[424808139,1781176247000,-299.60307495,0.00014774,2]
[424808122,1781176247000,-300.0,0.000147,5]
[424808132,1781176247000,-299.60307495,0.00014744,2]
[424808142,1781176247000,-299.60307495,0.0001479,2]
[424808130,1781176247000,-150.0,0.0001473,2]
[424808126,1781176247000,-150.0,0.00014714,2]
[424808128,1781176247000,-150.0,0.00014728,2]
[424808127,1781176247000,-299.60307495,0.00014714,2]
[424808129,1781176247000,-299.60307495,0.00014729,2]
[424808125,1781176247000,-150.0,0.00014714,2]
[424808123,1781176247000,-150.0,0.00014702,2]
[424808120,1781176247000,-150.0,0.00014694,2]
[424808131,1781176247000,-150.0,0.00014737,2]
[424808188,1781176248000,-150.0,0.00014884,2]
[424808187,1781176248000,-150.0,0.00014883,2]
[424808184,1781176248000,-150.0,0.00014877,2]
[424808189,1781176248000,-25000.0,0.00014891,3]
[424808190,1781176248000,-25000.0,0.00014891,3]
[424808182,1781176248000,-500.0,0.00014871,2]
[424808192,1781176248000,-150.0,0.00014893,2]
[424808196,1781176248000,-300.0,0.000149,5]
[424808191,1781176248000,-5800.0,0.00014891,2]
[424808194,1781176248000,-10819.58354044,0.000149,2]
[424808193,1781176248000,-299.60307495,0.00014895,2]
[424808195,1781176248000,-25000.0,0.000149,3]
[424808198,1781176248000,-250.0,0.000149,2]
[424808199,1781176248000,-25000.0,0.000149,3]
[424808185,1781176248000,-299.60307495,0.0001488,2]
[424808202,1781176248000,-399.75941169,0.000149,2]
[424808186,1781176248000,-25000.0,0.00014882,3]
[424808169,1781176248000,-2726.92,0.00014871,2]
[424808180,1781176248000,-660.37,0.00014871,2]
[424808197,1781176248000,-2000.0,0.000149,2]
[424808165,1781176248000,-500.0,0.00014871,2]
[424808167,1781176248000,-2726.92,0.00014871,2]
[424808166,1781176248000,-539.51,0.00014871,2]
[424808168,1781176248000,-2726.92,0.00014871,2]
[424808171,1781176248000,-2727.10955314,0.00014871,2]
[424808176,1781176248000,-993.54036356,0.00014871,2]
[424808183,1781176248000,-25000.0,0.00014874,3]
[424808174,1781176248000,-993.33,0.00014871,2]
[424808178,1781176248000,-660.37,0.00014871,2]
[424808175,1781176248000,-993.33,0.00014871,2]
[424808177,1781176248000,-660.37,0.00014871,2]
[424808172,1781176248000,-993.33,0.00014871,2]
[424808173,1781176248000,-993.33,0.00014871,2]
[424808179,1781176248000,-660.37,0.00014871,2]
[424808181,1781176248000,-660.37338711,0.00014871,2]
[424808170,1781176248000,-2726.92,0.00014871,2]
[424808200,1781176248000,-20540.24276242,0.000149,2]
[424808215,1781176248000,-299.60307495,0.00014956,2]
[424808205,1781176248000,-299.60307495,0.00014911,2]
[424808223,1781176248000,-225.43309031,0.00014986,2]
[424808220,1781176248000,-210.0975545,0.00014986,2]
[424808226,1781176248000,-299.60307495,0.00014986,2]
[424808225,1781176248000,-150.75812701,0.00014986,2]
[424808229,1781176248000,-237.71453242,0.0001499,2]
[424808234,1781176248000,-300.0,0.00014999,2]
[424808231,1781176248000,-300.0,0.00014999,2]
[424808237,1781176248000,-666.0,0.00014999,2]
[424808230,1781176248000,-45026.47521293,0.00014999,2]
[424808232,1781176248000,-666.0,0.00014999,2]
[424808235,1781176248000,-300.0,0.00014999,2]
[424808240,1781176248000,-8625885.13212748,0.00015,2]
[424808233,1781176248000,-300.0,0.00014999,2]
[424808239,1781176248000,-300.0,0.00014999,2]
[424808238,1781176248000,-300.0,0.00014999,2]
[424808224,1781176248000,-248.12091067,0.00014986,2]
[424808221,1781176248000,-285.87761885,0.00014986,2]
[424808222,1781176248000,-279.86118902,0.00014986,2]
[424808218,1781176248000,-257.36274763,0.00014986,2]
[424808203,1781176248000,-291.64660163,0.00014908,2]
[424808208,1781176248000,-150.0,0.00014924,2]
[424808219,1781176248000,-208.11144819,0.00014986,2]
[424808204,1781176248000,-150.0,0.00014909,2]
[424808236,1781176248000,-300.0,0.00014999,2]
[424808210,1781176248000,-150.0,0.00014935,2]
[424808211,1781176248000,-299.60307495,0.00014941,2]
[424808209,1781176248000,-299.60307495,0.00014926,2]
[424808214,1781176248000,-150.0,0.00014955,2]
[424808213,1781176248000,-150.0,0.00014952,2]
[424808206,1781176248000,-150.0,0.00014913,2]
[424808216,1781176248000,-150.0,0.0001496,2]
[424808228,1781176248000,-115968.91106027,0.00014989,2]
[424808227,1781176248000,-289.90717118,0.00014986,2]
[424808201,1781176248000,-5800.0,0.000149,2]
[424808212,1781176248000,-150.0,0.0001495,2]
[424808207,1781176248000,-150.0,0.00014918,2]
[424808217,1781176248000,-299.60307495,0.00014971,2]
[424808241,1781176249000,-590.49772061,0.00013699,2]
[424808251,1781176249000,-500.0,0.00013698,2]
[424808252,1781176249000,-231.42,0.00013698,2]
[424808247,1781176249000,-590.49772061,0.00013699,2]
[424808250,1781176249000,-816418.04125989,0.00015,2]
[424808248,1781176249000,-590.49772061,0.00013699,2]
[424808245,1781176249000,-590.49772061,0.00013699,2]
[424808243,1781176249000,-590.49772061,0.00013699,2]
[424808246,1781176249000,-590.49772061,0.00013699,2]
[424808244,1781176249000,-590.49772061,0.00013699,2]
[424808242,1781176249000,-12340.33488261,0.00015,2]
[424808249,1781176249000,-590.49772061,0.00013699,2]
[424808253,1781176250000,-1907.17135656,0.00010213,2]
[424808257,1781176251000,-1044.05628405,0.00011288,2]
[424808255,1781176251000,-3840.98409668,0.00010213,2]
[424808254,1781176251000,-889.51990694,0.00010213,2]
[424808259,1781176251000,-941.29062164,0.00011288,2]
[424808256,1781176251000,-6637.67536018,0.00010973,2]
[424808258,1781176251000,-3166.92512006,0.00011288,2]
[424808262,1781176928000,447.8085093,0.0001,5]
[424808264,1781176959000,201.28290493,8.255e-05,3]
[424808263,1781176959000,1070.90832178,8.255e-05,3]
[424808265,1781176960000,1070.90832178,8.255e-05,3]
[424808266,1781176989000,230.68923206,0.0001,5]
[424808268,1781177212000,-253.82,7.044e-05,2]
[424808269,1781177212000,-6.21022376,7.061e-05,2]
[424808270,1781177310000,4996.94,6.646e-05,2]
[424808271,1781177359000,-3220.24729767,6.705e-05,2]
[424808272,1781177359000,-1965.66618703,6.705e-05,2]
[424808273,1781177360000,-3220.24729767,6.705e-05,2]
[424808277,1781177383000,-150.0,6.95e-05,2]
[424808278,1781177383000,-176.43431369,7.026e-05,2]
[424808276,1781177383000,-1000.0,6.874e-05,2]
[424808275,1781177383000,-250.0,6.789e-05,2]
[424808274,1781177383000,-8.12921763,6.705e-05,2]
[424808279,1781177384000,-176.43431369,7.026e-05,2]
[424808280,1781177384000,-150.0,7.06e-05,2]
[424808282,1781177384000,-3388.37051332,7.061e-05,2]
[424808284,1781177384000,-659.80693407,7.061e-05,2]
[424808283,1781177384000,-3388.37051332,7.061e-05,2]
[424808281,1781177384000,-1477.37266831,7.061e-05,2]
[424808286,1781177408000,-3454.8688828,7.061e-05,2]
[424808285,1781177408000,-150.0,7.06e-05,2]
[424808288,1781177409000,-842.24606809,7.061e-05,2]
[424808287,1781177409000,-3604.8688828,7.061e-05,2]
[424808311,1781177431000,-175.82595858,7.436e-05,2]
[424808304,1781177431000,-150.0,7.202e-05,2]
[424808312,1781177431000,-166.90124494,7.436e-05,2]
[424808313,1781177431000,-176.43431369,7.436e-05,2]
[424808302,1781177431000,-150.0,7.131e-05,2]
[424808298,1781177431000,-160.0,7.069e-05,2]
[424808297,1781177431000,-27738.87362738,7.061e-05,2]
[424808300,1781177431000,-1852.42,7.103e-05,2]
[424808301,1781177431000,-1093.87,7.116e-05,2]
[424808296,1781177431000,-857.03856977,7.061e-05,2]
[424808295,1781177431000,-5530.0,7.061e-05,2]
[424808294,1781177431000,-6036.78747,7.061e-05,2]
[424808293,1781177431000,-12096.21564638,7.061e-05,2]
[424808306,1781177431000,-1892.16,7.247e-05,2]
[424808299,1781177431000,-1646.28,7.09e-05,2]
[424808309,1781177431000,-250.0,7.375e-05,2]
[424808307,1781177431000,-150.0,7.272e-05,2]
[424808305,1781177431000,-176.43431369,7.211e-05,2]
[424808303,1781177431000,-200.0,7.142e-05,2]
[424808327,1781177431000,-195.95,7.878e-05,2]
[424808325,1781177431000,-4200.0,7.8e-05,2]
[424808322,1781177431000,-250.0,7.766e-05,2]
[424808320,1781177431000,-167.0,7.705e-05,2]
[424808316,1781177431000,-226.24,7.513e-05,2]
[424808317,1781177431000,-193.0,7.562e-05,2]
[424808319,1781177431000,-2100.0,7.7e-05,2]
[424808323,1781177431000,-256.03930147,7.767e-05,2]
[424808321,1781177431000,-255.0,7.766e-05,2]
[424808318,1781177431000,-777.13,7.638e-05,2]
[424808314,1781177431000,-67138.95,7.474e-05,2]
[424808308,1781177431000,-150.0,7.343e-05,2]
[424808329,1781177431000,-6300.0,7.9e-05,2]
[424808310,1781177431000,-150.0,7.413e-05,2]
[424808315,1781177431000,-294.0,7.484e-05,2]
[424808333,1781177432000,-8500.0,8e-05,2]
[424808331,1781177432000,-37010.413647,7.945e-05,2]
[424808341,1781177432000,-3613.43366141,8.056e-05,2]
[424808332,1781177432000,-1632.442881,7.945e-05,2]
[424808335,1781177432000,-6257.2516,8.027e-05,2]
[424808339,1781177432000,-1519.30124406,8.056e-05,2]
[424808336,1781177432000,-255.88865067,8.056e-05,2]
[424808338,1781177432000,-4180.8023,8.056e-05,2]
[424808337,1781177432000,-6821.7941,8.056e-05,2]
[424808334,1781177432000,-1078.26,8.026e-05,2]
[424808342,1781177432000,-532.39501294,8.056e-05,2]
[424808340,1781177432000,-29584.34994729,8.056e-05,2]
[424808362,1781177437000,-150.99,8.058e-05,2]
[424808350,1781177437000,-1483.57598021,8.056e-05,2]
[424808351,1781177437000,-533.10733254,8.056e-05,2]
[424808352,1781177437000,-62106.90282155,8.056e-05,2]
[424808353,1781177437000,-4999.99,8.058e-05,2]
[424808355,1781177437000,-7227.49,8.058e-05,2]
[424808354,1781177437000,-9999.99,8.058e-05,2]
[424808356,1781177437000,-28110.85,8.058e-05,2]
[424808361,1781177437000,-1561.9,8.058e-05,2]
[424808357,1781177437000,-499.99,8.058e-05,2]
[424808358,1781177437000,-10974.65,8.058e-05,2]
[424808359,1781177437000,-3230.12,8.058e-05,2]
[424808360,1781177437000,-999.99,8.058e-05,2]
[424808363,1781177437000,-12672.57,8.058e-05,2]
[424808365,1781177437000,-3881.26,8.058e-05,2]
[424808364,1781177437000,-353.85,8.058e-05,2]
[424808367,1781177437000,-9999.99,8.058e-05,2]
[424808370,1781177437000,-3753.3,8.058e-05,2]
[424808366,1781177437000,-1632.85,8.058e-05,2]
[424808368,1781177437000,-9999.99,8.058e-05,2]
[424808369,1781177437000,-125997.85,8.058e-05,2]
[424808410,1781177438000,-742.23161852,8.218e-05,2]
[424808402,1781177438000,-742.23161852,8.218e-05,2]
[424808403,1781177438000,-742.23161852,8.218e-05,2]
[424808407,1781177438000,-742.23161852,8.218e-05,2]
[424808405,1781177438000,-742.23161852,8.218e-05,2]
[424808400,1781177438000,-204.42544917,8.218e-05,2]
[424808411,1781177438000,-742.23161852,8.218e-05,2]
[424808404,1781177438000,-742.23161852,8.218e-05,2]
[424808413,1781177438000,-742.23161852,8.218e-05,2]
[424808409,1781177438000,-742.23161852,8.218e-05,2]
[424808412,1781177438000,-742.23161852,8.218e-05,2]
[424808415,1781177438000,-742.23161852,8.218e-05,2]
[424808429,1781177438000,-742.23161852,8.218e-05,2]
[424808418,1781177438000,-742.23161852,8.218e-05,2]
[424808424,1781177438000,-742.23161852,8.218e-05,2]
[424808417,1781177438000,-742.23161852,8.218e-05,2]
[424808401,1781177438000,-742.23161852,8.218e-05,2]
[424808421,1781177438000,-742.23161852,8.218e-05,2]
[424808423,1781177438000,-742.23161852,8.218e-05,2]
[424808420,1781177438000,-742.23161852,8.218e-05,2]
[424808422,1781177438000,-742.23161852,8.218e-05,2]
[424808414,1781177438000,-742.23161852,8.218e-05,2]
[424808419,1781177438000,-742.23161852,8.218e-05,2]
[424808426,1781177438000,-742.23161852,8.218e-05,2]
[424808428,1781177438000,-742.23161852,8.218e-05,2]
[424808416,1781177438000,-742.23161852,8.218e-05,2]
[424808396,1781177438000,-500.0,8.218e-05,2]
[424808371,1781177438000,-9999.99,8.058e-05,2]
[424808398,1781177438000,-500.0,8.218e-05,2]
[424808427,1781177438000,-742.23161852,8.218e-05,2]
[424808375,1781177438000,-106011.7,8.058e-05,2]
[424808372,1781177438000,-299.99,8.058e-05,2]
[424808374,1781177438000,-1582.96,8.058e-05,2]
[424808373,1781177438000,-6094.29,8.058e-05,2]
[424808383,1781177438000,-150.0,8.178e-05,2]
[424808384,1781177438000,-27136.55,8.192e-05,2]
[424808385,1781177438000,-154.70902673,8.21e-05,2]
[424808376,1781177438000,-175.82595858,8.115e-05,2]
[424808386,1781177438000,-175.60918585,8.215e-05,2]
[424808378,1781177438000,-7134.28,8.13e-05,2]
[424808377,1781177438000,-150.0,8.13e-05,2]
[424808381,1781177438000,-166.66,8.177e-05,2]
[424808380,1781177438000,-8533.15642713,8.156e-05,2]
[424808379,1781177438000,-154.70902675,8.156e-05,2]
[424808382,1781177438000,-9968.712888,8.178e-05,2]
[424808387,1781177438000,-180.46972026,8.215e-05,2]
[424808390,1781177438000,-500.0,8.218e-05,2]
[424808389,1781177438000,-175.82595858,8.215e-05,2]
[424808388,1781177438000,-175.82595858,8.215e-05,2]
[424808391,1781177438000,-500.0,8.218e-05,2]
[424808395,1781177438000,-500.0,8.218e-05,2]
[424808393,1781177438000,-500.0,8.218e-05,2]
[424808394,1781177438000,-500.0,8.218e-05,2]
[424808399,1781177438000,-500.0,8.218e-05,2]
[424808397,1781177438000,-500.0,8.218e-05,2]
[424808425,1781177438000,-742.23161852,8.218e-05,2]
[424808474,1781177438000,-849.15585901,8.414e-05,2]
[424808433,1781177438000,-742.23161852,8.218e-05,2]
[424808467,1781177438000,-500.0,8.255e-05,2]
[424808461,1781177438000,-500.0,8.255e-05,2]
[424808463,1781177438000,-500.0,8.255e-05,2]
[424808460,1781177438000,-500.0,8.255e-05,2]
[424808464,1781177438000,-500.0,8.255e-05,2]
[424808465,1781177438000,-500.0,8.255e-05,2]
[424808462,1781177438000,-500.0,8.255e-05,2]
[424808469,1781177438000,-253.1,8.263e-05,2]
[424808472,1781177438000,-1000.0,8.414e-05,2]
[424808470,1781177438000,-154.70902673,8.263e-05,2]
[424808471,1781177438000,-1577.76,8.288e-05,2]
[424808478,1781177438000,-500.0,8.59e-05,2]
[424808477,1781177438000,-433.0,8.543e-05,2]
[424808473,1781177438000,-1000.0,8.414e-05,2]
[424808480,1781177438000,-500.0,8.59e-05,2]
[424808479,1781177438000,-500.0,8.59e-05,2]
[424808475,1781177438000,-166.66,8.447e-05,2]
[424808481,1781177438000,-500.0,8.59e-05,2]
[424808476,1781177438000,-500.0,8.529e-05,2]
[424808483,1781177438000,-500.0,8.59e-05,2]
[424808484,1781177438000,-150.0,8.59e-05,2]
[424808482,1781177438000,-500.0,8.59e-05,2]
[424808486,1781177438000,-150.0,8.59e-05,2]
[424808487,1781177438000,-500.0,8.59e-05,2]
[424808430,1781177438000,-742.23161852,8.218e-05,2]
[424808466,1781177438000,-500.0,8.255e-05,2]
[424808468,1781177438000,-500.0,8.255e-05,2]
[424808485,1781177438000,-500.0,8.59e-05,2]
[424808455,1781177438000,-63464.0,8.219e-05,2]
[424808459,1781177438000,-500.0,8.255e-05,2]
[424808431,1781177438000,-742.23161852,8.218e-05,2]
[424808432,1781177438000,-742.23161852,8.218e-05,2]
[424808435,1781177438000,-742.23161852,8.218e-05,2]
[424808439,1781177438000,-742.23161852,8.218e-05,2]
[424808436,1781177438000,-742.23161852,8.218e-05,2]
[424808438,1781177438000,-742.23161852,8.218e-05,2]
[424808440,1781177438000,-742.23161852,8.218e-05,2]
[424808437,1781177438000,-742.23161852,8.218e-05,2]
[424808442,1781177438000,-742.23161852,8.218e-05,2]
[424808443,1781177438000,-742.23161852,8.218e-05,2]
[424808445,1781177438000,-742.23161852,8.218e-05,2]
[424808441,1781177438000,-742.23161852,8.218e-05,2]
[424808434,1781177438000,-742.23161852,8.218e-05,2]
[424808444,1781177438000,-742.23161852,8.218e-05,2]
[424808446,1781177438000,-500.0,8.218e-05,2]
[424808453,1781177438000,-6954.0,8.219e-05,2]
[424808452,1781177438000,-2000.0,8.219e-05,2]
[424808449,1781177438000,-500.0,8.218e-05,2]
[424808447,1781177438000,-500.0,8.218e-05,2]
[424808454,1781177438000,-2395.09,8.219e-05,2]
[424808456,1781177438000,-500.0,8.255e-05,2]
[424808451,1781177438000,-180.11,8.219e-05,2]
[424808458,1781177438000,-500.0,8.255e-05,2]
[424808457,1781177438000,-497.07001958,8.255e-05,2]
[424808448,1781177438000,-500.0,8.218e-05,2]
[424808450,1781177438000,-3714.34,8.219e-05,2]
[424808526,1781177439000,-643.0,8.59e-05,2]
[424808525,1781177439000,-643.0,8.59e-05,2]
[424808523,1781177439000,-643.0,8.59e-05,2]
[424808524,1781177439000,-643.0,8.59e-05,2]
[424808521,1781177439000,-643.0,8.59e-05,2]
[424808522,1781177439000,-643.0,8.59e-05,2]
[424808518,1781177439000,-643.0,8.59e-05,2]
[424808520,1781177439000,-643.0,8.59e-05,2]
[424808544,1781177439000,-500.0,8.59e-05,2]
[424808516,1781177439000,-643.0,8.59e-05,2]
[424808519,1781177439000,-643.0,8.59e-05,2]
[424808534,1781177439000,-643.0,8.59e-05,2]
[424808527,1781177439000,-643.0,8.59e-05,2]
[424808536,1781177439000,-500.0,8.59e-05,2]
[424808530,1781177439000,-643.0,8.59e-05,2]
[424808528,1781177439000,-643.0,8.59e-05,2]
[424808531,1781177439000,-500.0,8.59e-05,2]
[424808533,1781177439000,-500.0,8.59e-05,2]
[424808532,1781177439000,-500.0,8.59e-05,2]
[424808535,1781177439000,-500.0,8.59e-05,2]
[424808537,1781177439000,-500.0,8.59e-05,2]
[424808538,1781177439000,-500.0,8.59e-05,2]
[424808546,1781177439000,-383.13351812,8.59e-05,2]
[424808517,1781177439000,-643.0,8.59e-05,2]
[424808529,1781177439000,-643.0,8.59e-05,2]
[424808515,1781177439000,-643.0,8.59e-05,2]
[424808501,1781177439000,-184.85073511,8.59e-05,2]
[424808511,1781177439000,-643.0,8.59e-05,2]
[424808493,1781177439000,-500.0,8.59e-05,2]
[424808488,1781177439000,-150.0,8.59e-05,2]
[424808492,1781177439000,-150.0,8.59e-05,2]
[424808490,1781177439000,-500.0,8.59e-05,2]
[424808491,1781177439000,-188.15521262,8.59e-05,2]
[424808489,1781177439000,-150.0,8.59e-05,2]
[424808494,1781177439000,-500.0,8.59e-05,2]
[424808497,1781177439000,-150.0,8.59e-05,2]
[424808499,1781177439000,-150.0,8.59e-05,2]
[424808496,1781177439000,-490.26130386,8.59e-05,2]
[424808498,1781177439000,-150.0,8.59e-05,2]
[424808512,1781177439000,-643.0,8.59e-05,2]
[424808503,1781177439000,-500.0,8.59e-05,2]
[424808500,1781177439000,-500.0,8.59e-05,2]
[424808502,1781177439000,-166.61154973,8.59e-05,2]
[424808504,1781177439000,-283.99832687,8.59e-05,2]
[424808506,1781177439000,-500.0,8.59e-05,2]
[424808509,1781177439000,-467.8377148,8.59e-05,2]
[424808505,1781177439000,-500.0,8.59e-05,2]
[424808510,1781177439000,-643.0,8.59e-05,2]
[424808508,1781177439000,-500.0,8.59e-05,2]
[424808507,1781177439000,-500.0,8.59e-05,2]